Cogmind - Beta 14 @@@ ROGUE MODE // 2024.11.07 @ 21:19:53 Player: Shimmyarah Result: Destroyed by G-47 Trooper with Particle Gun Performance ------------- Evolutions (2) 1000 Regions Visited (4) 800 Robots Destroyed (44) 220 Value Destroyed (1149) 1149 Prototype IDs (2) 40 Alien Tech Used (0) 0 Bonus (0) 0 TOTAL SCORE: 3209 Bonus ------- None Cogmind --------- Core Integrity 0/550 Matter 18/300 Energy 91/100 System Corruption 0% Temperature Cool (9) Movement Core (200) Ox3 Location -8/Materials Parts ------- > --- POWER (2) -------- (None) > --- PROPULSION (3) --- (None) > --- UTILITY (4) ------ Medium Storage Unit System Shield > --- WEAPON (2) ------- (None) > --- INVENTORY (10) --- Light Deuterium Engine Improved Propulsion Shielding Ion Cannon Ion Cannon Flak Cannon Grenade Launcher Rocket Launcher Rocket Launcher Improved Grenade Launcher Peak State ------------ > --- POWER ------------ Reinforced Ion Engine Light Deuterium Engine > --- PROPULSION ------- Light Treads Light Treads Light Treads > --- UTILITY ---------- Medium Storage Unit Sensor Array Improved Propulsion Shielding System Shield > --- WEAPON ----------- Flak Cannon Flak Cannon > --- INVENTORY -------- Seismic Detector Light EM Pulse Cannon Ion Cannon Ion Cannon Flak Cannon Grenade Launcher Rocket Launcher Rocket Launcher Rocket Launcher [Rating: 23] Favorites ----------- Power Light Ion Engine Engine Light Ion Engine Propulsion Light Treads Treads Light Treads Hover Unit Improved Hover Unit Utility Medium Storage Unit Device Sensor Array Storage Medium Storage Unit Processor Transport Network Coupler Hackware System Shield Protection Improved Propulsion Shielding Weapon Flak Cannon Energy Gun EM Pulse Gun Energy Cannon Light EM Pulse Cannon Ballistic Gun Assault Rifle Ballistic Cannon Flak Cannon Launcher Rocket Launcher Build | -11 -10 -10 -9 -8 ------- Run | Yrd Mat Min Mat Mat Slots Evolved 4 | . . . 2 2 Power 1 | . . . 1 . Propulsion 1 | . . . . 1 Utility 2 | . . . 1 1 Weapon . | . . . . . Parts Attached 45 | 7 5 2 17 14 Power 7 | 1 1 1 3 1 Engine 7 | 1 1 1 3 1 Core . | . . . . . Reactor . | . . . . . Propulsion 11 | 2 . . 5 4 Treads 10 | 2 . . 4 4 Leg . | . . . . . Wheel . | . . . . . Hover 1 | . . . 1 . Flight . | . . . . . Utility 12 | 2 1 1 2 6 Device 7 | 1 . 1 1 4 Storage 2 | 1 1 . . . Processor 1 | . . . 1 . Hackware 1 | . . . . 1 Protection 1 | . . . . 1 Artifact . | . . . . . Weapon 15 | 2 3 . 7 3 Energy Gun 2 | 1 . . 1 . Energy Cannon 4 | . 3 . 1 . Ballistic Gun 2 | 1 . . 1 . Ballistic Cannon 4 | . . . 2 2 Launcher 3 | . . . 2 1 Special Weapon . | . . . . . Impact Weapon . | . . . . . Slashing Weapon . | . . . . . Piercing Weapon . | . . . . . Special Melee Weapon . | . . . . . Unidentified Prototypes 2 | . . . 2 . Parts Lost 16 | . . . 3 13 Power 5 | . . . 2 3 Propulsion 4 | . . . 1 3 Utility 4 | . . . . 4 Weapon 3 | . . . . 3 Highest Loss Streak 9 | . . . 1 9 To Critical Strikes . | . . . . . Average Slot Usage (%) 94 | . 100 100 96 89 Engine 14 | . 14 14 20 10 Treads 23 | . 28 28 16 25 Hover 1 | . . . 4 . Device 14 | . 14 14 13 16 Storage 11 | . 14 14 11 9 Processor 3 | . . . 7 2 Hackware 2 | . . . . 6 Energy Gun 1 | . 6 . . . Energy Cannon 8 | . 15 28 8 . Ballistic Gun 1 | . 6 . . . Ballistic Cannon 9 | . . . 7 17 Launcher 1 | . . . 5 . Peak Build Rating 23 | 9 12 12 14 23 Average Rating 13 | 5 11 10 11 19 On Entrance 8 | . 9 12 10 12 Naked Turns . | . . . . . Heaviest Build 40 | 15 22 22 31 40 Greatest Support 60 | 40 40 40 40 60 Greatest Overweight (x) 3 | . . . 3 3 Average Overweight (x) . | . . . . . Largest Inventory Capacity 10 | 8 10 10 10 10 Average Capacity 9 | 7 8 10 10 10 Most Carried 10 | 4 10 10 10 10 Average Carried 8 | 1 7 10 9 9 Final Capacity 10 | 8 10 10 10 10 Final Carried 10 | 2 10 10 10 9 Class Distribution -------------------- 96% | Mutant 3% | Scavenger-Skirmisher Dominant Class ---------------- Mutant | -10/Materials Mutant | -10/Mines Mutant | -9/Materials Mutant | -8/Materials Resources | -11 -10 -10 -9 -8 ----------- Run | Yrd Mat Min Mat Mat Matter Collected 832 | 312 73 18 290 139 Remotely . | . . . . . Salvage Created 1182 | 247 241 106 385 203 Parts 76 | 17 10 4 29 16 Haulers Intercepted . | . . . . . Recyclers Shooed 1 | 1 . . . . Parts Field Recycled . | . . . . . Retrieved Matter . | . . . . . Parts Self-Destructed . | . . . . . Prevented . | . . . . . Kills | -11 -10 -10 -9 -8 ------- Run | Yrd Mat Min Mat Mat Combat Hostiles Destroyed 28 | . 7 2 9 10 Melee 2 | . . . . 2 Guns 3 | . 3 . . . Cannons 15 | . 2 1 6 6 AOE 5 | . . . 3 2 Classes Destroyed 11 | 3 2 . 5 1 Worker 4 | 2 . . 2 . Builder 1 | . . . 1 . Tunneler 5 | 5 . . . . Recycler 1 | 1 . . . . Operator 1 | . . . 1 . Watcher 4 | . . . 3 1 Swarmer 9 | . 3 . 3 3 Grunt 8 | . 4 2 1 1 Brawler 1 | . . . 1 . Sentry 7 | . . . 4 3 Hunter 3 | . . . . 3 Best Kill Streak 4 | 3 2 1 4 3 Combat Bots Only 3 | . 2 1 3 3 Max Kills in Single Turn 3 | 1 1 1 3 1 Gunslinging . | . . . . . Exploded 3 | . . . 3 1 Melee 1 | . . . . 1 Uniques/NPCs Destroyed . | . . . . . Combat | -11 -10 -10 -9 -8 -------- Run | Yrd Mat Min Mat Mat Hostile Shots Fired 277 | . 36 8 63 170 Missed 81 | . 11 1 15 54 Damage Taken 2728 | 27 268 85 599 1749 Core 735 | 27 30 . 127 551 Absorbed by Shields . | . . . . . Redirected to Shielding 26 | . . . . 26 Core Remaining (%) 78 | 89 . 77 68 . Volleys Fired 103 | 14 20 7 32 30 Largest 2 | 2 2 2 2 2 Hottest 112 | 60 112 112 112 88 Shots Fired 199 | 28 40 10 63 58 Gun 54 | 28 26 . . . Cannon 141 | . 14 10 61 56 Launcher 4 | . . . 2 2 Special . | . . . . . Kinetic 110 | 14 13 . 27 56 Thermal 27 | . . . 27 . Explosive 4 | . . . 2 2 Electromagnetic 58 | 14 27 10 7 . Robot Hit Streak 10 | 6 7 5 10 9 Robot Miss Streak 17 | 2 4 2 4 17 Penetration Max . | . . . . . Secondary Targets . | . . . . . Shots Hit Robots 124 | 13 20 7 37 47 Core Hits 72 | 8 7 4 19 34 Critical Kills . | . . . . . Critical Parts Destroyed . | . . . . . Critical Strikes 1 | . . . 1 . Blast 1 | . . . 1 . Melee Attacks . | . . . . . Impact . | . . . . . Slashing . | . . . . . Piercing . | . . . . . Sneak Attacks . | . . . . . Combat Hostiles . | . . . . . Follow-up Attacks . | . . . . . Damage Inflicted 2430 | 198 427 218 832 755 Guns 280 | 167 113 . . . Cannons 1613 | . 300 157 687 469 Explosions 469 | 31 . 43 138 257 Melee . | . . . . . Ramming 68 | . 14 18 7 29 Kinetic 900 | 63 40 . 328 469 Thermal 405 | 31 . 43 331 . Explosive 395 | . . . 138 257 Electromagnetic 662 | 104 373 157 28 . Impact . | . . . . . Slashing . | . . . . . Piercing . | . . . . . Highest Corruption 2 | . . . 2 . Average Corruption 2 | . . . 2 . Corruption Purged . | . . . . . Corruption Blocked . | . . . . . Overload Shots . | . . . . . Overflow Damage 125 | 6 10 . 7 102 Projectiles 14 | . 10 . . 4 Explosions 111 | 6 . . 7 98 Melee . | . . . . . Knockbacks 8 | . . . . 8 Impact . | . . . . . Kinetic 8 | . . . . 8 Secondary . | . . . . . Self-Inflicted Damage 319 | 27 . . 39 253 Shots 7 | 1 . . 1 5 Rammed 14 | . 3 4 1 6 Targets Rammed 17 | . 3 4 2 8 Kicked . | . . . . . Crushed 3 | . . . 1 2 Highest Temperature 219 | 12 168 101 219 108 Average Temperature 57 | 12 48 51 84 26 Received Heat Transfer 798 | . 120 51 141 486 Siege Activations . | . . . . . Robots Corrupted 3 | . 2 1 . . Combat Hostiles 3 | . 2 1 . . Parts Fried 3 | . 1 1 1 . Impact Corruptions . | . . . . . Robots Melted . | . . . . . Combat Hostiles . | . . . . . Parts Melted 1 | . . . 1 . Heat Transferred 803 | 50 . 50 703 . Parts Sabotaged . | . . . . . Parts Stolen . | . . . . . Parts Stripped . | . . . . . Power Chain Reactions 3 | 1 . 1 . 1 Alert | -11 -10 -10 -9 -8 ------- Run | Yrd Mat Min Mat Mat Peak Influence 332 | 40 292 106 199 332 Initial 40 | . 26 35 40 39 Average 122 | 21 148 68 99 177 Maximum Alert Level 1 | . 1 . . 1 Low Security (%) 85 | 100 80 100 100 64 Level 1 14 | . 19 . . 35 Level 2 . | . . . . . Level 3 . | . . . . . Level 4 . | . . . . . Level 5 . | . . . . . High Security . | . . . . . Max Security . | . . . . . Squads Dispatched . | . . . . . Investigation . | . . . . . Extermination . | . . . . . Reinforcement . | . . . . . Assault . | . . . . . Garrison . | . . . . . Intercept . | . . . . . Searches Triggered . | . . . . . Construction Impeded . | . . . . . Haulers Reinforced . | . . . . . Active Scanning Responses . | . . . . . Cargo Convoy Interrupts . | . . . . . Stealth | -11 -10 -10 -9 -8 --------- Run | Yrd Mat Min Mat Mat Distress Signals 4 | . 1 . 2 1 Communications Jammed . | . . . . . Distress Signals . | . . . . . Times Spotted 50 | . 13 2 14 21 Peak Tracking Total 6 | . 5 1 6 5 Tactical Retreats 5 | . 2 . 1 2 Traps | -11 -10 -10 -9 -8 ------- Run | Yrd Mat Min Mat Mat Traps Triggered 1 | . . . 1 . Indirectly . | . . . . . Trap Hack Attempts . | . . . . . Triggered . | . . . . . Disarmed . | . . . . . Reprogrammed . | . . . . . Reused . | . . . . . Traps Extracted . | . . . . . Installed . | . . . . . Triggered . | . . . . . Machines | -11 -10 -10 -9 -8 ---------- Run | Yrd Mat Min Mat Mat Machines Disabled 8 | . 2 . 1 5 Max in Single Turn 3 | . 1 . 1 3 Machines Repaired . | . . . . . Machines Dismantled . | . . . . . Machines Sabotaged . | . . . . . Overloaded Fab Kills . | . . . . . Hacking | -11 -10 -10 -9 -8 --------- Run | Yrd Mat Min Mat Mat Machines Accessed 4 | . 1 . 2 1 Terminals 4 | . 1 . 2 1 Fabricators . | . . . . . Repair Stations . | . . . . . Recycling Units . | . . . . . Scanalyzers . | . . . . . Garrison Access . | . . . . . Total Hacks 8 | . 2 . 5 1 Successful 4 | . 1 . 2 1 Failed 4 | . 1 . 3 . Catastrophic 1 | . . . 1 . Database Lockouts . | . . . . . Manual 8 | . 2 . 5 1 Terminals 8 | . 2 . 5 1 Fabricators . | . . . . . Repair Stations . | . . . . . Recycling Units . | . . . . . Scanalyzers . | . . . . . Garrison Access . | . . . . . Terminal Hacks 1 | . . . 1 . Locate Traps 1 | . . . 1 . Fabricator Hacks . | . . . . . Repair Station Hacks . | . . . . . Recycling Unit Hacks . | . . . . . Scanalyzer . | . . . . . Garrison Access Hacks . | . . . . . Unauthorized Hacks 3 | . 1 . 1 1 Terminals 3 | . 1 . 1 1 Operators 3 | . 1 . 1 1 Fabricators . | . . . . . Repair Stations . | . . . . . Recycling Units . | . . . . . Scanalyzers . | . . . . . Garrison Access . | . . . . . Data Cores Recovered . | . . . . . Used . | . . . . . Hacking Detections 2 | . 1 . 1 . Full Trace Events . | . . . . . Feedback Events . | . . . . . Feedback Blocked . | . . . . . Robot Schematics Acquired . | . . . . . Robots Built . | . . . . . Authchips . | . . . . . Time . | . . . . . Total Robot Build Rating . | . . . . . Part Schematics Acquired . | . . . . . Parts Built . | . . . . . Authchips . | . . . . . Time . | . . . . . Total Part Build Rating . | . . . . . Parts Repaired . | . . . . . Time . | . . . . . Parts Recycled . | . . . . . Recycled Matter . | . . . . . Retrieved Matter . | . . . . . Retrieved Components . | . . . . . Parts Scanalyzed . | . . . . . Part Schematics Acquired . | . . . . . Parts Damaged . | . . . . . Bothacking | -11 -10 -10 -9 -8 ------------ Run | Yrd Mat Min Mat Mat Used RIF Installer . | . . . . . Robots Hacked . | . . . . . Non-combat . | . . . . . Combat . | . . . . . Robot Hacks Applied . | . . . . . Relay Couplers Released . | . . . . . Fabnet Peak Effective % . | . . . . . Robots Rewired . | . . . . . Allies Hacked . | . . . . . Hacks Repelled . | . . . . . Allies | -11 -10 -10 -9 -8 -------- Run | Yrd Mat Min Mat Mat Total Allies . | . . . . . Largest Group . | . . . . . Highest-Rated Group . | . . . . . Highest-Rated Ally . | . . . . . Total Orders . | . . . . . Ally Attacks . | . . . . . Total Damage . | . . . . . Kills . | . . . . . Allies Corrupted . | . . . . . Allies Melted . | . . . . . Intel | -11 -10 -10 -9 -8 ------- Run | Yrd Mat Min Mat Mat Robot Analysis Total . | . . . . . Derelict Logs Recovered 1 | . . 1 . . Drone Launches . | . . . . . Drone Recoveries . | . . . . . Exploration | -11 -10 -10 -9 -8 ------------- Run | Yrd Mat Min Mat Mat Turns Passed 2803 | 258 440 243 946 916 Spaces Moved 1405 | 133 222 135 428 487 Core 17 | 11 . . . 6 Treads 1386 | 122 222 135 426 481 Legs . | . . . . . Wheels . | . . . . . Hover 2 | . . . 2 . Flight . | . . . . . Fastest Speed 50 | 50 160 160 160 160 Average Speed 168 | 150 160 160 189 161 Slowest Speed 260 | 160 160 160 260 240 Overloaded Moves . | . . . . . Propulsion Burnouts . | . . . . . Robots Hopped . | . . . . . Cave-ins Triggered . | . . . . . Exploration Rate (%) 26 | 7 38 23 43 20 Regions Visited 4 Branch Regions 1 Pre-discovered Areas 1 | . . 1 . . Known Exits Taken 1 | . . . 1 . Unknown Exits Taken 3 | 1 1 1 . . Scrap Searched . | . . . . . Spaces Dug . | . . . . . Terrain Destroyed 71 | . . 6 15 50 Melee . | . . . . . Projectile 2 | . . . 2 . AOE 69 | . . 6 13 50 Terrain Rammed . | . . . . . Walls Destroyed . | . . . . . Machines Disabled . | . . . . . Actions | -11 -10 -10 -9 -8 --------- Run | Yrd Mat Min Mat Mat Total 1636 | 162 266 149 499 560 Wait . | . . . . . Move 1401 | 132 221 134 427 487 Hop . | . . . . . Pick Up 43 | 9 12 1 10 11 Fast Attach 5 | . . . 4 1 Attach 18 | 7 1 . 3 7 Detach . | . . . . . Swap 22 | . 4 2 10 6 Drop 27 | . 5 1 11 10 Fire 103 | 14 20 7 32 30 Melee . | . . . . . Ram . | . . . . . Kick . | . . . . . Crush 17 | . 3 4 2 8 Escape Stasis . | . . . . . Rewire . | . . . . . Trap . | . . . . . Miscellaneous . | . . . . . Route ------- -11/Scrapyard -10/Materials -10/Mines -9/Materials (discovered 3 exits: *Mat x2 / *Min) -8/Materials History --------- Turn | Location | Event 50 | -11/Scrapyard | Discovered new exit (range 16) 259 | -11/Scrapyard | Entered Materials 318 | -10/Materials | Build established: Mutant 650 | -10/Materials | Discovered new exit (range 11) 699 | -10/Materials | Entered Mines 700 | -10/Mines | Learned location of Storage (-7) 786 | -10/Mines | Learned 8 Materials zone layouts 877 | -10/Mines | Received a Rocket Launcher from a helpful Derelict 924 | -10/Mines | Discovered new exit (range 9) 942 | -10/Mines | Entered Materials 942 | -9/Materials | Evolved 2 slots: Power x1, Utility x1 943 | -9/Materials | Identified exit to Materials 943 | -9/Materials | Identified exit to Mines 1888 | -9/Materials | Entered another Materials area 1888 | -8/Materials | Evolved 2 slots: Propulsion x1, Utility x1 2038 | -8/Materials | Lost 3 parts (1p2u) 2783 | -8/Materials | Core integrity fell below 50% 2796 | -8/Materials | Core integrity fell below 20% 2804 | -8/Materials | Destroyed by G-47 Trooper with Particle Gun Last Messages --------------- 02772_ Flak Cannon destroyed. 02772_ Critical hit (Burn: +37). 02775_ Slug penetrates Wall. 02778_ Penetrated by Slug. 02780_ Flak Cannon destroyed. 02781_ Penetrated by Slug. 02781_ G-47 Trooper destroyed. 02785_ Slug penetrates Wall. 02787_ Lgt. Deuterium Engine destroyed. 02787_ Slammed into G-47 Trooper. 02788_ Lgt. Treads destroyed. 02789_ Penetrated by Slug. 02792_ Critical hit (Burn: +37). 02795_ Slug penetrates Wall. 02802_ Imp. Sensor Array destroyed. 02802_ Destroyed Imp. Sensor Array. 02802_ G-47 Trooper destroyed. 02803_ Seismic Detector destroyed. 02804_ Penetrated by Slug. 02804_ Rocket Launcher destroyed. Map ----- +----------------------------------------------------+ | ??????????????# / ! ### | | ??????????????# ! ### | | ??##########??#[ # # | | ?##[ #??# ! ## | | ?# [ #### ! # # | | ?##= # # # | | ??# # # # | | ??# !!! + ##+#########+####+##### | | ??# !!! # % | | ??# !!! # ########## | | ??# ##### """ """" #! ! ## | | ??# #???# """ """" # ##+# | | ??####+#####???# """ """" # # | | ?????# #???????# # # "T | | ?????# #???????# # # | | ?????# ######### ]"""" """" # # | | ?????# """" """" # # = | | ?????# """" """" + # = | | ??#####"#### h # ##+# | | ?## # # ## # | | ?# [ = # # ## # | | ?## *! # ########## # | | ??# ! + * ##??# # | | ??# # % ######## #???# # | | ??# " ##+# #+###?????# #?#?# # | | ??# "R"= # @g* #?????# #???# # | | ??# """ ] # %g #?????# #???# # | | ??# # "" #?????# #???# # | | ??########## "" " #?????# ##### # | | ??????????# " ####### | | ??????????## [ + | | ???????????##################### | | ???????????????????????????????######## | | ??????????????????o???????????????????# | | ??????????????????????????????????????# | | ??????????????????????????????????????# | | ??????????????????????????????????????# | | ??????????????????????????????????????# | | ??????????????????????????????????????# | | ??????????????????????????????????????# | | ??????????????????????????????????????# | | ?????????????????????????????????????? | | ?????????????????????????????????????? | | ?????????????????????????????????????? | | ??????????????????????????????????????# | | ?????????????????????????????????????????? | | ?????????????????????????????????????????? | | ?????????????????????????????????????????? | | ?????????????????????????????????????????? | | ?????????????????????????????????????????? | +----------------------------------------------------+ Best States ------------- Heat Dissipation 31 Energy Generation 21 Energy Capacity 305 Matter Stores 300 Matter Capacity 300 Sight Range 16 Robot Scan Range 15 Terrain Scan Range 16 Terrain Scan Density 10 Propulsion Shielding 66 Evasion (%) 50 Recoil Reduction 3 Defensive Hacking 10 Item Schematics ----------------- None Robot Schematics ------------------ None Fabricated ------------ Nothing Alien Tech Used ----------------- None Achievements -------------- None Challenges ------------ None Game ------ Seed BattleArmoredPrototype Manual? 0 Play Time 00:31:39 Cumulative 17.0 hours Start 2024.11.07 @ 20:50:03 End 2024.11.07 @ 21:19:53 Sessions 1 Manual Loads 0 Difficulty Rogue Special Mode None Game No. 40 Rogue 40 Adventurer 0 Explorer 0 Win Type - Total 0 Types 0/0/0/0/0/0/0/0/0 Lore% 9 Gallery% 16 Achievement% 16 Wizard Run 0 Options --------- Layout 1 ASCII 0 Keyboard 0 Movement Arrows Keybinds 0 Fullscreen 1 Font 24/Smallcaps Map View 50x40 Zoom Use 0% Tactical HUD 1 Map Filters NONE Filters NONE Steam 1 RUN: 343b30fb-fa6b-4fd0-9a96-27a9f21b64df